bitfinex/quotes_BTCUSD_20220405
["timestamp","ask_amount","ask_price","bid_price","bid_amount"]
[1649124481007,0.26021496,46655.0,46652.0,0.05359018]
[1649124481208,0.250567,46655.0,46652.0,0.05359018]
[1649124482149,0.250567,46655.0,46654.0,0.22779916]
[1649124482298,0.26021496,46655.0,46654.0,0.27779916]
[1649124482399,0.26021496,46655.0,46654.0,0.05]
[1649124482901,0.26021496,46655.0,46650.0,0.5499248]
[1649124483001,0.250567,46655.0,46650.0,0.5499248]
[1649124483402,0.250567,46655.0,46651.0,0.23512176]
[1649124483752,0.250567,46655.0,46650.0,0.5499248]
[1649124484854,0.250567,46655.0,46651.0,0.30663107]
[1649124485208,0.261287,46655.0,46651.0,0.30663107]
[1649124485306,0.261287,46655.0,46650.0,0.5499248]
[1649124486380,0.261287,46655.0,46650.0,0.79142964]
[1649124487681,0.261287,46655.0,46650.0,0.79204218]
[1649124487984,0.250567,46655.0,46650.0,0.79204218]
[1649124488736,0.250567,46655.0,46650.0,0.5499248]
[1649124488835,0.250567,46655.0,46650.0,0.55053734]
[1649124488939,0.250567,46658.0,46650.0,0.55053734]
[1649124489040,0.250567,46657.0,46651.0,0.3]
[1649124489226,0.01072,46659.0,46651.0,0.3]
[1649124489415,0.250567,46659.0,46651.0,0.3]
[1649124489521,0.003,46660.0,46651.0,0.3]
[1649124489620,0.00061238,46662.0,46651.0,0.3]
[1649124489719,0.00061238,46662.0,46652.0,0.103583]
[1649124489818,0.00061238,46662.0,46652.0,0.153583]
[1649124489918,0.2280609,46665.0,46659.0,0.23321313]
[1649124490017,0.250567,46664.0,46659.0,0.23321313]
[1649124490119,0.01072,46663.0,46659.0,0.28321313]
[1649124490219,0.2511794,46662.0,46659.0,0.28321313]
[1649124490418,0.2511794,46662.0,46659.0,0.05]
[1649124490519,0.2511794,46662.0,46657.0,0.35762828]
[1649124491021,0.250567,46662.0,46657.0,0.35762828]
[1649124491171,0.01072,46661.0,46657.0,0.35762828]
[1649124491270,0.004,46667.0,46657.0,0.35762828]
[1649124491271,0.00061242,46662.0,46657.0,0.35762828]
[1649124491576,0.00061242,46662.0,46661.0,0.23087283]
[1649124491777,0.00061242,46662.0,46660.0,0.05358124]
[1649124492172,0.01084859,46661.0,46660.0,0.05358124]
[1649124492273,0.26141559,46661.0,46660.0,0.05358124]
[1649124492997,0.00061241,46663.0,46660.0,0.05358124]
[1649124493096,0.250567,46662.0,46658.0,0.29463099]
[1649124493748,0.25117942,46662.0,46658.0,0.29463099]
[1649124494604,0.250567,46662.0,46658.0,0.29463099]
[1649124494906,0.25117942,46662.0,46658.0,0.29463099]
[1649124495108,0.25117942,46662.0,46658.0,0.24463099]
[1649124495856,0.250567,46662.0,46658.0,0.24463099]
[1649124496058,0.25116082,46662.0,46658.0,0.24463099]
[1649124497057,0.250567,46662.0,46658.0,0.24463099]
[1649124497157,0.250567,46662.0,46658.0,0.29463099]
[1649124497259,0.25116082,46662.0,46658.0,0.29463099]
[1649124498263,0.250567,46662.0,46658.0,0.29463099]
[1649124498464,0.25116082,46662.0,46658.0,0.29463099]
[1649124499468,0.250567,46662.0,46658.0,0.29463099]
[1649124499620,0.250567,46662.0,46658.0,0.05]
[1649124499769,0.25113953,46662.0,46658.0,0.05]
[1649124500666,0.250567,46662.0,46658.0,0.33915278]
[1649124500764,0.250567,46662.0,46658.0,0.05]
[1649124500864,0.25113953,46662.0,46658.0,0.05]
[1649124501864,0.250567,46662.0,46658.0,0.05]
[1649124502162,0.25113953,46662.0,46658.0,0.05]
[1649124502713,0.25113953,46662.0,46658.0,0.04992001]
[1649124503063,0.250567,46662.0,46658.0,0.04992001]
[1649124503364,0.25114052,46662.0,46658.0,0.04992001]
[1649124504209,0.250567,46662.0,46658.0,0.04992001]
[1649124504563,0.25114052,46662.0,46658.0,0.04992001]
[1649124505459,0.250567,46662.0,46658.0,0.04992001]
[1649124505659,0.25114052,46662.0,46658.0,0.04992001]
[1649124506664,0.250567,46662.0,46658.0,0.04992001]
[1649124506862,0.25114045,46662.0,46658.0,0.04992001]
[1649124507866,0.250567,46662.0,46658.0,0.04992001]
[1649124508094,0.25114045,46662.0,46658.0,0.04992001]
[1649124508995,0.250567,46662.0,46658.0,0.04992001]
[1649124509295,0.25114045,46662.0,46658.0,0.04992001]
[1649124509796,0.25114045,46662.0,46657.0,0.64075119]
[1649124510250,0.250567,46662.0,46657.0,0.64075119]
[1649124510498,0.25114046,46662.0,46657.0,0.64075119]
[1649124511449,0.250567,46662.0,46657.0,0.64075119]
[1649124511715,0.25114046,46662.0,46657.0,0.69433511]
[1649124512612,0.250567,46662.0,46657.0,0.69433511]
[1649124512910,0.25114046,46662.0,46657.0,0.69433511]
[1649124513859,0.250567,46662.0,46657.0,0.69433511]
[1649124514060,0.25114046,46662.0,46657.0,0.69433511]
[1649124515064,0.250567,46662.0,46657.0,0.69433511]
[1649124515365,0.25114046,46662.0,46657.0,0.69433511]
[1649124515804,0.25114046,46662.0,46657.0,0.4112122]
[1649124516356,0.250567,46662.0,46657.0,0.4112122]
[1649124516555,0.25114046,46662.0,46657.0,0.4112122]
[1649124516855,0.25114046,46662.0,46657.0,0.67560654]
[1649124517557,0.250567,46662.0,46657.0,0.67560654]
[1649124517759,0.25113493,46662.0,46657.0,0.67560654]
[1649124518712,0.250567,46662.0,46657.0,0.67560654]
[1649124519013,0.25113493,46662.0,46657.0,0.67560654]
[1649124520012,0.250567,46662.0,46657.0,0.67560654]
[1649124520212,0.25113493,46662.0,46657.0,0.67560654]
[1649124521163,0.250567,46662.0,46657.0,0.67560654]
[1649124521262,0.250567,46662.0,46657.0,0.36797826]
[1649124521364,0.2511059,46662.0,46657.0,0.36797826]
[1649124522320,0.250567,46662.0,46657.0,0.36797826]
[1649124522616,0.2511059,46662.0,46657.0,0.36797826]
[1649124523154,0.2511059,46662.0,46657.0,0.31439434]
[1649124523554,0.250567,46662.0,46657.0,0.31439434]
[1649124523804,0.2511059,46662.0,46657.0,0.31439434]
[1649124524006,0.2511059,46662.0,46657.0,0.05]
[1649124524256,0.2511059,46662.0,46656.0,0.05]
[1649124524708,0.250567,46662.0,46656.0,0.04992141]
[1649124525008,0.25111047,46662.0,46656.0,0.04992141]
[1649124525208,0.25111047,46662.0,46657.0,0.26622361]
[1649124525910,0.250567,46662.0,46657.0,0.26622361]
[1649124526212,0.25111047,46662.0,46657.0,0.26622361]
[1649124526414,0.25111047,46662.0,46656.0,0.04992141]
[1649124526512,0.13886433,46661.0,46656.0,0.04992141]
[1649124526613,0.250567,46660.0,46652.0,0.05]
[1649124526754,0.293367,46660.0,46652.0,0.05]
[1649124526852,0.250567,46660.0,46652.0,0.05]
[1649124527153,0.13886433,46661.0,46652.0,0.05]
[1649124527355,0.13886433,46661.0,46653.0,0.3]
[1649124527557,0.250567,46660.0,46653.0,0.35]
[1649124527656,0.00054316,46662.0,46653.0,0.35]
[1649124527657,0.250567,46661.0,46653.0,0.35]
[1649124527755,0.01072,46661.0,46653.0,0.35]
[1649124527856,0.00054316,46662.0,46653.0,0.35]
[1649124528157,0.250567,46661.0,46653.0,0.40358694]
[1649124528258,0.261287,46661.0,46653.0,0.40358694]
[1649124528457,0.250567,46661.0,46653.0,0.40358694]
[1649124528558,0.250567,46661.0,46657.0,0.28215253]
[1649124528657,0.261287,46661.0,46657.0,0.28215253]
[1649124529160,0.261287,46661.0,46657.0,0.33215253]
[1649124529659,0.250567,46661.0,46657.0,0.33215253]
[1649124529861,0.261287,46661.0,46657.0,0.33215253]
[1649124530809,0.250567,46661.0,46657.0,0.33215253]
[1649124531009,0.250567,46661.0,46657.0,0.05]
[1649124531110,0.261287,46661.0,46657.0,0.05]
[1649124531210,0.261287,46661.0,46654.0,0.05]
[1649124531314,0.261287,46661.0,46653.0,0.05358694]
[1649124531963,0.261287,46661.0,46655.0,0.29235818]
[1649124532065,0.250567,46661.0,46655.0,0.29235818]
[1649124532164,0.250567,46661.0,46655.0,0.34235818]
[1649124532366,0.261287,46661.0,46655.0,0.34235818]
[1649124532565,0.250567,46661.0,46655.0,0.34235818]
[1649124532665,0.0428,46660.0,46655.0,0.34235818]
[1649124532764,0.250567,46659.0,46655.0,0.34235818]
[1649124532865,0.00054291,46662.0,46655.0,0.34235818]
[1649124532965,0.250567,46658.0,46655.0,0.34235818]
[1649124533066,0.250567,46661.0,46655.0,0.34235818]
[1649124533365,0.0428,46660.0,46655.0,0.34235818]
[1649124533465,0.250567,46659.0,46655.0,0.34235818]
[1649124533566,0.00054291,46662.0,46655.0,0.34235818]
[1649124533667,0.250567,46661.0,46655.0,0.34235818]
[1649124534628,0.00054292,46662.0,46655.0,0.34235818]
[1649124534729,0.250567,46661.0,46655.0,0.34235818]
[1649124535382,0.250567,46659.0,46655.0,0.05]
[1649124535484,0.250567,46661.0,46653.0,0.05358694]
[1649124535584,0.261287,46661.0,46653.0,0.05358694]
[1649124535684,0.250567,46661.0,46653.0,0.05358694]
[1649124535784,0.0005429,46662.0,46653.0,0.05358694]
[1649124535883,0.250567,46661.0,46653.0,0.05358694]
[1649124536084,0.3,46660.0,46653.0,0.05358694]
[1649124536184,0.0005429,46662.0,46653.0,0.05358694]
[1649124536285,0.250567,46661.0,46653.0,0.05358694]
[1649124536486,0.250567,46661.0,46656.0,0.27433083]
[1649124536585,0.250567,46661.0,46656.0,0.32433083]
[1649124537436,0.00054291,46662.0,46656.0,0.32433083]
[1649124537538,0.250567,46661.0,46656.0,0.32433083]
[1649124539009,0.00054291,46662.0,46656.0,0.32433083]
[1649124539109,0.250567,46661.0,46656.0,0.32433083]
[1649124539912,0.250567,46661.0,46656.0,0.05]
[1649124540015,0.00054291,46662.0,46653.0,0.05358694]
[1649124540118,0.27497472,46665.0,46656.0,0.36215009]
[1649124540215,0.250567,46661.0,46656.0,0.36215009]
[1649124540315,0.00213667,46664.0,46656.0,0.36215009]
[1649124540416,0.00213667,46664.0,46656.0,0.41215009]
[1649124540417,0.250567,46663.0,46656.0,0.41215009]
[1649124540620,0.250567,46663.0,46657.0,0.0535831]
[1649124540716,0.01071,46664.0,46657.0,0.0535831]
[1649124540820,0.14113197,46666.0,46657.0,0.0535831]
[1649124540919,0.01071,46665.0,46658.0,0.17368265]
[1649124541017,0.01071,46666.0,46658.0,0.17368265]
[1649124541116,0.003,46667.0,46658.0,0.05]
[1649124541317,0.003,46667.0,46659.0,0.322019]
[1649124541423,0.003,46667.0,46657.0,0.2238588]
[1649124541521,0.003,46667.0,46660.0,0.41508395]
[1649124541620,0.003,46667.0,46660.0,0.25191927]
[1649124541768,0.003,46667.0,46660.0,0.35549227]
[1649124542217,0.003,46667.0,46662.0,0.05357259]
[1649124542718,0.001,46667.0,46662.0,0.05357259]
[1649124543120,0.00161238,46667.0,46662.0,0.05357259]
[1649124544021,0.001,46667.0,46662.0,0.05357259]
[1649124544223,0.00161238,46667.0,46662.0,0.05357259]
[1649124545227,0.001,46667.0,46662.0,0.05357259]
[1649124545474,0.00161238,46667.0,46662.0,0.05357259]
[1649124546068,0.00161238,46667.0,46663.0,0.322019]
[1649124546168,0.00161238,46667.0,46662.0,0.05357259]
[1649124546370,0.001,46667.0,46662.0,0.05357259]
[1649124546570,0.001,46667.0,46663.0,0.322019]
[1649124546671,0.00161238,46667.0,46662.0,0.05357259]
[1649124546768,0.00161238,46667.0,46663.0,0.322019]
[1649124546867,0.00161238,46667.0,46662.0,0.05357259]
[1649124546967,0.00161238,46667.0,46663.0,0.322019]
[1649124547068,0.00161238,46667.0,46662.0,0.05357259]
[1649124547619,0.001,46667.0,46663.0,0.322019]
[1649124547773,0.001,46667.0,46662.0,0.05357259]
[1649124547869,0.00159239,46667.0,46663.0,0.322019]
[1649124547971,0.00159239,46667.0,46663.0,0.372019]
[1649124548073,0.00159239,46667.0,46663.0,0.05]
[1649124548373,0.00159239,46667.0,46662.0,0.05357259]
[1649124548474,0.00159239,46667.0,46663.0,0.322019]
[1649124548573,0.00159239,46667.0,46662.0,0.10357259]
[1649124548675,0.00159239,46667.0,46663.0,0.322019]
[1649124548774,0.00159239,46667.0,46662.0,0.10357259]
[1649124548775,0.001,46667.0,46662.0,0.10357259]
[1649124549079,0.00159239,46667.0,46662.0,0.10357259]
[1649124549970,0.001,46667.0,46662.0,0.10357259]
[1649124550271,0.00159239,46667.0,46662.0,0.10357259]
[1649124550673,0.00159239,46667.0,46663.0,0.3]
[1649124550872,0.00159239,46667.0,46663.0,0.35]
[1649124551221,0.001,46667.0,46663.0,0.35]
[1649124551422,0.00157335,46667.0,46663.0,0.35]
[1649124552426,0.001,46667.0,46663.0,0.35]
[1649124552675,0.00157335,46667.0,46663.0,0.35]
[1649124552973,0.00157335,46667.0,46664.0,0.16071172]
[1649124553176,0.00157335,46667.0,46665.0,0.29540506]
[1649124553274,0.00157335,46667.0,46665.0,0.34540506]
[1649124553574,0.001,46667.0,46665.0,0.34540506]
[1649124556711,0.001,46667.0,46666.0,0.3]
[1649124557468,0.001,46667.0,46666.0,0.622019]
[1649124558574,0.001,46667.0,46666.0,0.672019]
[1649124558778,0.001,46667.0,46666.0,0.722019]
[1649124559428,0.00057445,46669.0,46666.0,0.722019]
[1649124559526,0.00057445,46669.0,46667.0,4.524019]
[1649124559627,0.56235932,46674.0,46669.0,0.053561]
[1649124559726,0.56235932,46674.0,46669.0,0.10712192]
[1649124559826,0.00057444,46670.0,46669.0,0.15712192]
[1649124559925,0.00057444,46670.0,46669.0,0.45712192]
[1649124560461,0.00057444,46670.0,46669.0,0.82914092]
[1649124560812,0.56235932,46674.0,46669.0,0.82914092]
[1649124560912,0.56235932,46674.0,46670.0,0.322019]
[1649124561162,0.00057443,46672.0,46670.0,0.322019]
[1649124561263,0.00057443,46672.0,46671.0,0.622019]
[1649124561363,0.00057443,46672.0,46671.0,0.672019]
[1649124561463,0.00057443,46672.0,46671.0,0.722019]
[1649124562064,0.56235932,46674.0,46673.0,0.322019]
[1649124562261,0.56293374,46674.0,46673.0,0.322019]
[1649124562365,0.56293374,46674.0,46673.0,0.05]
[1649124562564,0.56293374,46674.0,46673.0,0.372019]
[1649124562864,0.56293374,46674.0,46673.0,0.05]
[1649124563065,0.56293374,46674.0,46673.0,0.372019]
[1649124563263,0.56235932,46674.0,46673.0,0.372019]
[1649124563364,0.56235932,46674.0,46673.0,0.05]
[1649124563470,0.56235932,46674.0,46673.0,0.372019]
[1649124563563,0.56235932,46674.0,46673.0,0.05]
[1649124563763,0.56235932,46674.0,46673.0,0.372019]
[1649124563863,0.56235932,46674.0,46673.0,0.05]
[1649124573022,0.56209658,46674.0,46673.0,0.05]
[1649124581167,0.55709658,46674.0,46673.0,0.05]
[1649124588207,0.55709658,46674.0,46673.0,0.23035431]
[1649124588306,0.55709658,46674.0,46673.0,0.55237331]
[1649124588406,0.55709658,46674.0,46673.0,0.23035431]
[1649124588506,0.55644658,46674.0,46673.0,0.28035431]
[1649124591171,0.55644658,46674.0,46673.0,0.1]
[1649124591281,0.55644658,46674.0,46673.0,0.05]
[1649124591370,0.55644658,46674.0,46673.0,0.1]
[1649124591919,0.55644658,46674.0,46673.0,0.05]
[1649124592623,0.59924658,46674.0,46673.0,0.05]
[1649124592723,0.84981358,46674.0,46673.0,0.05]
[1649124592826,0.84981358,46674.0,46670.0,0.6]
[1649124592923,0.59924658,46674.0,46670.0,0.6]
[1649124593523,0.59978939,46674.0,46670.0,0.6]
[1649124594466,0.59924658,46674.0,46670.0,0.6]
[1649124594667,0.5997894,46674.0,46670.0,0.6]
[1649124595670,0.59924658,46674.0,46670.0,0.6]
[1649124595872,0.5997894,46674.0,46670.0,0.6]
[1649124596822,0.59924658,46674.0,46670.0,0.6]
[1649124597023,0.5997894,46674.0,46670.0,0.6]
[1649124597985,0.59924658,46674.0,46670.0,0.6]
[1649124598286,0.5997894,46674.0,46670.0,0.6]
[1649124599191,0.59924658,46674.0,46670.0,0.6]
[1649124599438,0.5997894,46674.0,46672.0,0.00112106]
[1649124600191,0.5997894,46674.0,46670.0,0.59366358]
[1649124600293,0.59121932,46674.0,46670.0,0.59366358]
[1649124600397,0.5906765,46674.0,46670.0,0.59366358]
[1649124600598,0.5906765,46674.0,46670.0,0.55]
[1649124600698,0.59121932,46674.0,46670.0,0.55]
[1649124601598,0.5906765,46674.0,46670.0,0.55]
[1649124601825,0.59121932,46674.0,46670.0,0.55]
[1649124601926,0.59121932,46674.0,46673.0,0.00223441]
[1649124602025,0.84178632,46674.0,46673.0,0.00223441]
[1649124602780,0.8412435,46674.0,46673.0,0.00223441]
[1649124603227,0.5906765,46674.0,46673.0,0.00223441]
[1649124603327,0.8412435,46674.0,46673.0,0.00223441]
[1649124603933,0.8412435,46674.0,46670.0,0.55]
[1649124603934,0.5478765,46674.0,46670.0,0.55]
[1649124605079,0.5478765,46674.0,46670.0,0.6]
[1649124605482,0.54841932,46674.0,46670.0,0.6]
[1649124606336,0.59121932,46674.0,46670.0,0.6]
[1649124606488,0.5906765,46674.0,46670.0,0.6]
[1649124606684,0.59121932,46674.0,46670.0,0.6]
[1649124607635,0.5906765,46674.0,46670.0,0.6]
[1649124607834,0.54841932,46674.0,46670.0,0.55]
[1649124608034,0.293367,46673.0,46670.0,0.55]
[1649124608136,0.346949,46673.0,46670.0,0.55]
[1649124608836,0.346949,46673.0,46670.0,0.5]
[1649124609088,0.69840083,46673.0,46670.0,0.5]
[1649124609261,0.87389203,46671.0,46670.0,0.5]
[1649124609461,0.828667,46671.0,46670.0,0.5]
[1649124610113,0.828667,46671.0,46670.0,0.55]
[1649124610313,0.293367,46671.0,46670.0,0.55]
[1649124611017,0.05412483,46673.0,46670.0,0.55]
[1649124611116,0.250567,46672.0,46670.0,0.55]
[1649124611214,0.250567,46671.0,46670.0,0.55]
[1649124611515,0.053582,46673.0,46670.0,0.55]
[1649124611620,0.250567,46672.0,46670.0,0.55]
[1649124611765,0.053582,46673.0,46670.0,0.55]
[1649124611967,0.250567,46672.0,46670.0,0.55]
[1649124612068,0.053582,46673.0,46670.0,0.55]
[1649124612169,0.54841932,46674.0,46670.0,0.55]
[1649124612369,0.250567,46671.0,46670.0,0.55]
[1649124612470,0.250567,46673.0,46670.0,0.55]
[1649124612985,0.54841973,46674.0,46670.0,0.55]
[1649124613181,0.250567,46673.0,46670.0,0.55]
[1649124613779,0.5478765,46674.0,46670.0,0.55]
[1649124613881,0.54841974,46674.0,46670.0,0.55]
[1649124613980,0.250567,46673.0,46670.0,0.55]
[1649124614381,0.54841974,46674.0,46670.0,0.55]
[1649124614480,0.250567,46672.0,46670.0,0.55]
[1649124614581,0.54841974,46674.0,46670.0,0.55]
[1649124614685,0.250567,46673.0,46670.0,0.55]
[1649124614784,0.54841974,46674.0,46670.0,0.55]
[1649124614785,0.5478765,46674.0,46670.0,0.55]
[1649124614883,0.250567,46673.0,46670.0,0.55]
[1649124614984,0.250567,46672.0,46670.0,0.55]
[1649124615084,0.54841973,46674.0,46670.0,0.55]
[1649124615385,0.250567,46673.0,46670.0,0.55]
[1649124615635,0.54841973,46674.0,46670.0,0.55]
[1649124616084,0.5478765,46674.0,46670.0,0.55]
[1649124616232,0.54841928,46674.0,46670.0,0.55]
[1649124616332,0.250567,46673.0,46670.0,0.55]
[1649124616533,0.54841928,46674.0,46670.0,0.55]
[1649124616636,0.250567,46673.0,46670.0,0.55]
[1649124616772,0.54841928,46674.0,46670.0,0.55]
[1649124616969,0.250567,46673.0,46670.0,0.55]
[1649124617469,0.54841928,46674.0,46670.0,0.55]
[1649124618370,0.250567,46673.0,46670.0,0.55]
[1649124618472,0.5478765,46674.0,46670.0,0.55]
[1649124618670,0.54841928,46674.0,46670.0,0.55]
[1649124618971,0.250567,46673.0,46670.0,0.55]
[1649124619072,0.54841928,46674.0,46670.0,0.55]
[1649124619329,0.250567,46673.0,46670.0,0.55]
[1649124619423,0.54841928,46674.0,46670.0,0.55]
[1649124619623,0.5478765,46674.0,46670.0,0.55]
[1649124619875,0.54841932,46674.0,46670.0,0.55]
[1649124620073,0.250567,46673.0,46670.0,0.55]
[1649124620174,0.54841932,46674.0,46670.0,0.55]
[1649124620799,0.5478765,46674.0,46670.0,0.55]
[1649124621101,0.54841932,46674.0,46670.0,0.55]
[1649124621751,0.250567,46673.0,46670.0,0.55]
[1649124621856,0.54841932,46674.0,46670.0,0.55]
[1649124622000,0.5478765,46674.0,46670.0,0.55]
[1649124622102,0.250567,46673.0,46670.0,0.55]
[1649124623504,0.54873716,46673.0,46670.0,0.55]
[1649124623704,0.250567,46673.0,46670.0,0.54992479]
[1649124624007,0.54876562,46673.0,46670.0,0.54992479]
[1649124624104,0.250567,46673.0,46670.0,0.54992479]
[1649124624330,0.54841932,46674.0,46670.0,0.54992479]
[1649124624483,0.5478765,46674.0,46670.0,0.54992479]
[1649124624681,0.250567,46673.0,46670.0,0.54992479]
[1649124624882,0.293367,46673.0,46670.0,0.54992479]
[1649124625182,0.59144492,46673.0,46670.0,0.54992479]
[1649124625332,0.250567,46673.0,46670.0,0.54992479]
[1649124625832,0.54867403,46673.0,46670.0,0.54992479]
[1649124625931,0.54841932,46674.0,46670.0,0.54992479]
[1649124626131,0.250567,46673.0,46670.0,0.54992479]
[1649124626485,0.54841932,46674.0,46670.0,0.54992479]
[1649124626683,0.250567,46673.0,46670.0,0.54992479]
[1649124628136,0.5478765,46674.0,46670.0,0.54992479]
[1649124628336,0.54841932,46674.0,46670.0,0.54992479]
[1649124629037,0.250567,46673.0,46670.0,0.54992479]
[1649124629442,0.54841932,46674.0,46670.0,0.54992479]
[1649124629544,0.250567,46671.0,46670.0,0.54992479]
[1649124629641,0.250567,46673.0,46670.0,0.54992479]
[1649124629893,0.54841932,46674.0,46670.0,0.54992479]
[1649124630092,0.250567,46673.0,46670.0,0.54992479]
[1649124630193,0.250567,46672.0,46670.0,0.54992479]
[1649124630295,0.54841932,46674.0,46670.0,0.54992479]
[1649124630396,0.5478765,46674.0,46670.0,0.54992479]
[1649124630497,0.250567,46673.0,46670.0,0.54992479]
[1649124630698,0.00054283,46673.0,46670.0,0.54992479]
[1649124630847,0.250567,46672.0,46670.0,0.54992479]
[1649124630946,0.00054283,46673.0,46670.0,0.54992479]
[1649124631146,0.250567,46672.0,46670.0,0.54992479]
[1649124631246,0.00054283,46673.0,46670.0,0.54992479]
[1649124631649,0.250567,46672.0,46670.0,0.54992479]
[1649124631783,0.5478765,46674.0,46670.0,0.54992479]
[1649124631881,0.250567,46672.0,46670.0,0.54992479]
[1649124632086,0.54841932,46674.0,46670.0,0.54992479]
[1649124632482,0.250567,46673.0,46670.0,0.54992479]
[1649124632585,0.54841932,46674.0,46670.0,0.54992479]
[1649124632785,0.5478765,46674.0,46670.0,0.54992479]
[1649124632983,0.250567,46673.0,46670.0,0.54992479]
[1649124633389,0.250567,46672.0,46670.0,0.54992479]
[1649124633487,0.250567,46671.0,46670.0,0.54992479]
[1649124633585,0.54841932,46674.0,46670.0,0.54992479]
[1649124633686,0.54856976,46673.0,46670.0,0.54992479]
[1649124634337,0.250567,46673.0,46670.0,0.54992479]
[1649124634441,0.54841932,46674.0,46670.0,0.54992479]
[1649124634839,0.250567,46673.0,46670.0,0.54992479]
[1649124635037,0.54841932,46674.0,46670.0,0.54992479]
[1649124635140,0.250567,46673.0,46670.0,0.54992479]
[1649124635289,0.54841932,46674.0,46670.0,0.54992479]
[1649124635390,0.5478765,46674.0,46670.0,0.54992479]
[1649124635534,0.54841932,46674.0,46670.0,0.54992479]
[1649124636435,0.5478765,46674.0,46670.0,0.54992479]
[1649124636634,0.54841932,46674.0,46670.0,0.54992479]
[1649124637037,0.250567,46673.0,46670.0,0.54992479]
[1649124637138,0.54841932,46674.0,46670.0,0.54992479]
[1649124637339,0.250567,46673.0,46670.0,0.54992479]
[1649124637441,0.54841932,46674.0,46670.0,0.54992479]
[1649124637639,0.5478765,46674.0,46670.0,0.54992479]
[1649124637839,0.250567,46673.0,46670.0,0.54992479]
[1649124638190,0.54841932,46674.0,46670.0,0.54992479]
[1649124638741,0.250567,46673.0,46670.0,0.60349822]
[1649124638843,0.5478765,46674.0,46670.0,0.60349822]
[1649124638941,0.250567,46673.0,46670.0,0.60349822]
[1649124639142,0.5478765,46674.0,46670.0,0.60349822]
[1649124639278,0.250567,46673.0,46670.0,0.60349822]
[1649124639578,0.54841932,46674.0,46670.0,0.60349822]
[1649124639833,0.250567,46673.0,46670.0,0.60349822]
[1649124639932,0.54841932,46674.0,46670.0,0.60349822]
[1649124640031,0.5478765,46674.0,46670.0,0.60349822]
[1649124640131,0.250567,46673.0,46670.0,0.60349822]
[1649124640332,0.54841932,46674.0,46670.0,0.60349822]
[1649124640531,0.250567,46673.0,46670.0,0.60349822]
[1649124640632,0.54841932,46674.0,46670.0,0.60349822]
[1649124641283,0.5478765,46674.0,46670.0,0.60349822]
[1649124641435,0.250567,46673.0,46670.0,0.60349822]
[1649124641889,0.54841932,46674.0,46670.0,0.60349822]
[1649124641987,0.250567,46673.0,46670.0,0.60349822]
[1649124642490,0.5478765,46674.0,46670.0,0.60349822]
[1649124642588,0.250567,46673.0,46670.0,0.60349822]
[1649124642691,0.54841932,46674.0,46670.0,0.60349822]
[1649124642789,0.250567,46672.0,46670.0,0.60349822]
[1649124642889,0.54841932,46674.0,46670.0,0.60349822]
[1649124643032,0.250567,46673.0,46670.0,0.60349822]
[1649124643230,0.54841932,46674.0,46670.0,0.60349822]
[1649124643628,0.5478765,46674.0,46670.0,0.60349822]
[1649124643729,0.250567,46673.0,46670.0,0.60349822]
[1649124644129,0.54841932,46674.0,46670.0,0.60349822]
[1649124644329,0.250567,46673.0,46670.0,0.60349822]
[1649124644529,0.54841932,46674.0,46670.0,0.60349822]
[1649124644679,0.250567,46673.0,46670.0,0.60349822]
[1649124644982,0.250567,46672.0,46670.0,0.60349822]
[1649124645081,0.54841889,46674.0,46670.0,0.60349822]
[1649124645183,0.250567,46673.0,46670.0,0.60349822]
[1649124645281,0.250567,46672.0,46670.0,0.60349822]
[1649124645380,0.54841889,46674.0,46670.0,0.60349822]
[1649124645481,0.250567,46673.0,46670.0,0.60349822]
[1649124645730,0.250567,46673.0,46670.0,0.59912894]
[1649124645830,0.250567,46672.0,46670.0,0.59912894]
[1649124645930,0.54841889,46674.0,46670.0,0.59912894]
[1649124646030,0.250567,46673.0,46670.0,0.59912894]
[1649124646231,0.2511094,46673.0,46670.0,0.59912894]
[1649124646381,0.0005424,46673.0,46670.0,0.59912894]
[1649124647290,0.5478765,46674.0,46670.0,0.59912894]
[1649124647492,0.54841889,46674.0,46670.0,0.59912894]
[1649124647589,0.250567,46673.0,46670.0,0.59912894]
[1649124647691,0.54841889,46674.0,46670.0,0.59912894]
[1649124647793,0.250567,46673.0,46670.0,0.59912894]
[1649124648040,0.54841889,46674.0,46670.0,0.59912894]
[1649124648142,0.250567,46673.0,46670.0,0.59912894]
[1649124648244,0.250567,46672.0,46670.0,0.59912894]
[1649124648345,0.54841889,46674.0,46670.0,0.59912894]
[1649124648445,0.250567,46673.0,46670.0,0.59912894]
[1649124648543,0.250567,46672.0,46670.0,0.59912894]
[1649124648646,0.250567,46673.0,46670.0,0.59912894]
[1649124648747,0.250567,46672.0,46670.0,0.59912894]
[1649124648846,0.0005429,46673.0,46670.0,0.59912894]
[1649124648945,0.250567,46672.0,46670.0,0.59912894]
[1649124649045,0.0005429,46673.0,46670.0,0.59912894]
[1649124649547,0.250567,46672.0,46670.0,0.59912894]
[1649124649647,0.6478765,46674.0,46670.0,0.59912894]
[1649124649751,0.250567,46673.0,46670.0,0.59912894]
[1649124649849,0.64841939,46674.0,46670.0,0.59912894]
[1649124650537,0.64841939,46674.0,46670.0,0.70626734]
[1649124650836,0.6478765,46674.0,46670.0,0.70626734]
[1649124651039,0.64841939,46674.0,46670.0,0.70626734]
[1649124652038,0.6478765,46674.0,46670.0,0.70626734]
[1649124652338,0.64841931,46674.0,46670.0,0.70626734]
[1649124653239,0.6478765,46674.0,46670.0,0.70626734]
[1649124653442,0.64841931,46674.0,46670.0,0.70626734]
[1649124654445,0.6478765,46674.0,46670.0,0.70626734]
[1649124654695,0.64841931,46674.0,46670.0,0.70626734]
[1649124655647,0.6478765,46674.0,46670.0,0.70626734]
[1649124655849,0.64841932,46674.0,46670.0,0.70626734]
[1649124656850,0.5478765,46674.0,46670.0,0.70626734]
[1649124656951,0.5478765,46674.0,46670.0,0.75983334]
[1649124657050,0.54841932,46674.0,46670.0,0.75983334]
[1649124658084,0.5478765,46674.0,46670.0,0.75983334]
[1649124658285,0.54841932,46674.0,46670.0,0.75983334]
[1649124659236,0.5478765,46674.0,46670.0,0.75983334]
[1649124659486,0.54841932,46674.0,46670.0,0.75983334]
[1649124660138,0.54841932,46674.0,46670.0,0.75126326]